bitfinex/quotes_ETHUSD_20230405
["timestamp","ask_amount","ask_price","bid_price","bid_amount"]
[1680662431777,3.134,1916.6,1916.2,1.48682497]
[1680662431945,2.63428255,1916.5,1916.3,0.54466827]
[1680662432274,2.63428255,1916.5,1916.3,0.72054847]
[1680662432439,3.142,1916.6,1916.3,0.72054847]
[1680662432641,5.76828255,1916.6,1916.3,0.72054847]
[1680662432841,0.77112007,1916.4,1916.3,1.79846088]
[1680662433044,0.77112007,1916.4,1916.3,1.25379261]
[1680662433547,0.77112007,1916.4,1916.3,1.25579261]
[1680662433751,0.77112007,1916.4,1916.3,2.55319474]
[1680662433952,0.77112007,1916.4,1916.3,2.81605755]
[1680662434478,0.77112007,1916.4,1916.3,2.32205755]
[1680662434776,0.11000001,1916.9,1916.3,2.32205755]
[1680662434961,0.11000001,1916.9,1916.6,0.54418236]
[1680662435151,0.11000001,1916.9,1916.7,0.78259]
[1680662435346,0.11000001,1916.9,1916.7,1.82605]
[1680662435550,0.11000001,1916.9,1916.7,2.37023236]
[1680662435756,1.13398662,1916.8,1916.7,1.82605]
[1680662436079,1.13398662,1916.8,1916.7,2.14530059]
[1680662436470,1.13398662,1916.8,1916.7,2.15130059]
[1680662436637,1.13398662,1916.8,1916.7,2.69548295]
[1680662436843,0.11000001,1916.9,1916.7,2.15130059]
[1680662437040,0.11000001,1916.9,1916.7,2.68948295]
[1680662437246,0.11000001,1916.9,1916.8,1.0514983]
[1680662437758,1.24903956,1916.9,1916.8,1.0514983]
[1680662438566,1.24903956,1916.9,1916.7,0.006]
[1680662438780,1.24903956,1916.9,1916.8,0.26085]
[1680662439789,1.24903956,1916.9,1916.7,0.52172]
[1680662440084,3.88332211,1916.9,1916.7,0.78258]
[1680662440247,3.88332211,1916.9,1916.7,0.26685]
[1680662440452,3.88332211,1916.9,1916.7,0.26085]
[1680662440693,3.88332211,1916.9,1916.7,0.78258]
[1680662441052,3.88332211,1916.9,1916.7,0.95658]
[1680662441684,1.24903956,1916.9,1916.7,0.95658]
[1680662442187,1.24903956,1916.9,1916.7,1.157189]
[1680662443066,1.24527084,1916.9,1916.7,1.157189]
[1680662443388,1.24527084,1916.9,1916.7,0.95261981]
[1680662444401,1.24527084,1916.9,1916.7,0.43088981]
[1680662445964,1.24527084,1916.9,1916.7,0.95261981]
[1680662446608,1.24527084,1916.9,1916.7,0.174]
[1680662446809,2.63428255,1916.8,1916.7,0.174]
[1680662446991,2.86428255,1916.8,1916.7,0.174]
[1680662447192,2.86428255,1916.8,1916.5,0.26088]
[1680662447398,2.86428255,1916.8,1916.7,0.166]
[1680662448470,2.86428255,1916.8,1916.7,0.42686]
[1680662449192,2.86428255,1916.8,1916.7,0.166]
[1680662449666,12.58981664,1916.8,1916.7,0.166]
[1680662449864,12.59181664,1916.8,1916.7,0.166]
[1680662450107,12.61333468,1916.8,1916.2,9.9623]
[1680662450321,12.61333468,1916.8,1916.2,0.008]
[1680662450603,3.134,1916.6,1916.0,1.6214059]
[1680662450904,3.134,1916.6,1916.0,0.54418236]
[1680662450905,5.99828255,1916.5,1916.0,0.54418236]
[1680662451073,6.00628255,1916.5,1916.0,0.80513236]
[1680662451602,0.02151804,1916.4,1915.9,1.3624559]
[1680662451783,0.02151804,1916.4,1915.8,1.09436472]
[1680662451784,3.134,1916.2,1915.8,0.54418236]
[1680662452111,2.86428255,1916.1,1915.8,0.54418236]
[1680662452481,2.86428255,1916.1,1915.7,1.6214359]
[1680662452803,2.86428255,1916.1,1915.8,0.54418236]
[1680662453309,2.86428255,1916.1,1915.7,1.3604559]
[1680662453812,1.14361551,1916.0,1915.7,0.54418236]
[1680662454015,6.91189806,1916.0,1915.7,0.54418236]
[1680662454310,2.63428255,1915.9,1915.6,0.64418236]
[1680662454618,2.86428255,1915.9,1915.6,0.90519236]
[1680662454965,2.86428255,1915.9,1915.6,0.1]
[1680662456061,2.86428255,1915.9,1915.6,0.36101]
[1680662456267,0.002,1916.0,1915.6,1.0479166]
[1680662456510,5.76828255,1916.0,1915.6,0.90519236]
[1680662456699,5.77028255,1916.0,1915.6,0.36101]
[1680662457193,5.77028255,1916.0,1915.6,0.90519236]
[1680662457363,5.77028255,1916.0,1915.6,0.36101]
[1680662459685,5.77028255,1916.0,1915.6,0.88303]
[1680662459886,5.77028255,1916.0,1915.6,1.02850386]
[1680662460483,5.92685255,1916.0,1915.6,0.1]
[1680662460999,5.77028255,1916.0,1915.6,0.1]
[1680662461373,5.77028255,1916.0,1915.6,0.361]
[1680662461881,5.77028255,1916.0,1915.7,0.068]
[1680662462072,3.134,1915.8,1915.7,0.068]
[1680662462268,6.15487255,1915.8,1915.7,0.068]
[1680662462518,11.49828255,1915.8,1915.6,0.1]
[1680662462726,5.99828255,1915.7,1915.6,0.1]
[1680662462928,0.002,1915.7,1915.6,0.36101]
[1680662463219,3.134,1915.9,1915.6,0.1]
[1680662463422,5.76828255,1915.9,1915.6,0.05]
[1680662463572,5.77628255,1915.9,1915.6,0.05]
[1680662463773,5.93286255,1915.9,1915.6,0.05]
[1680662464208,5.93286255,1915.9,1915.7,0.073]
[1680662464520,5.92686255,1915.9,1915.7,0.073]
[1680662464699,6.5514638,1915.9,1915.7,0.073]
[1680662465013,5.99828255,1915.8,1915.6,0.05]
[1680662465204,6.15687255,1915.8,1915.6,0.05]
[1680662465549,6.00028255,1915.8,1915.6,0.05]
[1680662466058,6.67902993,1915.8,1915.6,0.05]
[1680662466956,6.00028255,1915.8,1915.6,0.05]
[1680662467129,0.002,1915.8,1915.6,0.05]
[1680662467330,3.52058,1915.9,1915.6,0.05]
[1680662467557,5.99828255,1915.9,1915.6,0.05]
[1680662467730,6.00028255,1915.9,1915.6,0.05]
[1680662469057,0.67207667,1915.8,1915.7,0.07]
[1680662469218,0.67207667,1915.8,1915.7,0.421303]
[1680662469632,0.67207667,1915.8,1915.7,0.943303]
[1680662470158,0.67207667,1915.8,1915.7,0.160303]
[1680662470357,0.67207667,1915.8,1915.7,0.07]
[1680662470755,0.67207667,1915.8,1915.7,0.331]
[1680662472238,0.67207667,1915.8,1915.7,0.07]
[1680662472436,0.67207667,1915.8,1915.7,0.331]
[1680662473171,0.67207667,1915.8,1915.7,0.07]
[1680662474364,0.67207667,1915.8,1915.7,0.331]
[1680662474570,0.67207667,1915.8,1915.7,0.4213]
[1680662475278,0.67207667,1915.8,1915.7,0.9433]
[1680662481203,0.67207667,1915.8,1915.7,0.4213]
[1680662481365,0.67207667,1915.8,1915.7,0.9433]
[1680662482282,0.67207667,1915.8,1915.7,0.1603]
[1680662482481,0.67207667,1915.8,1915.7,0.331]
[1680662482890,0.67207667,1915.8,1915.7,0.853]
[1680662483099,0.67207667,1915.8,1915.7,0.331]
[1680662484105,0.67207667,1915.8,1915.7,0.231]
[1680662484312,0.67207667,1915.8,1915.7,0.268]
[1680662484885,0.67207667,1915.8,1915.7,0.298]
[1680662486619,0.67207667,1915.8,1915.7,0.037]
[1680662486780,0.67207667,1915.8,1915.7,0.298]
[1680662488686,0.67207667,1915.8,1915.7,0.385002]
[1680662488883,0.67207667,1915.8,1915.7,0.82]
[1680662489100,3.30635922,1915.8,1914.7,12.72326367]
[1680662489306,8.632,1915.6,1914.8,1.08615488]
[1680662489502,19.82,1914.8,1914.4,0.0347686]
[1680662489720,1.08968,1914.2,1913.6,0.65046099]
[1680662490037,1.08968,1914.2,1913.8,0.002]
[1680662490038,5.5227,1914.0,1913.8,0.002]
[1680662490241,3.134,1913.6,1912.6,0.002]
[1680662490400,3.134,1913.6,1912.2,0.006]
[1680662490401,5.498,1912.9,1912.2,0.006]
[1680662490585,3.364,1912.8,1912.3,0.02156226]
[1680662490789,0.23,1912.8,1912.3,0.02156226]
[1680662490985,2.15839919,1913.4,1912.3,0.28301226]
[1680662491288,0.002,1913.7,1912.7,5.498]
[1680662491494,0.5,1913.9,1913.0,5.75936]
[1680662491751,1.08968,1914.2,1913.2,5.498]
[1680662491930,4.22368,1914.2,1913.4,0.2613]
[1680662492104,4.22368,1914.2,1913.4,0.006]
[1680662492438,9.72168,1914.2,1913.4,0.2673]
[1680662492644,9.72368,1914.2,1913.4,0.006]
[1680662492813,8.632,1914.0,1913.4,0.006]
[1680662493145,3.134,1913.8,1913.4,0.006]
[1680662493313,8.632,1913.8,1913.3,0.002]
[1680662493514,8.634,1913.8,1913.1,0.006]
[1680662493841,3.134,1913.6,1912.9,0.006]
[1680662494135,3.864,1913.5,1912.8,0.006]
[1680662494341,3.134,1913.3,1912.8,0.006]
[1680662494496,3.134,1913.3,1912.7,0.006]
[1680662494698,0.23,1913.2,1912.5,0.006]
[1680662494923,3.134,1913.1,1912.4,0.26744]
[1680662495240,3.134,1913.1,1912.4,0.006]
[1680662495241,0.23,1913.0,1912.4,0.006]
[1680662495414,0.23,1913.0,1912.4,0.26745]
[1680662496003,0.23,1913.0,1912.4,0.79035]
[1680662496345,0.23,1913.0,1912.5,0.340455]
[1680662496517,0.23,1913.1,1912.6,0.26141]
[1680662496712,0.23,1913.1,1912.5,0.79029]
[1680662497544,0.23,1913.1,1912.5,0.81185002]
[1680662498704,3.70916683,1913.0,1912.5,0.81185002]
[1680662498943,3.70916683,1913.0,1912.6,0.342595]
[1680662499102,3.70916683,1913.0,1912.6,0.006]
[1680662499324,0.23,1912.9,1912.6,0.006]
[1680662499841,3.134,1912.8,1912.6,0.006]
[1680662500246,0.23,1912.7,1912.5,0.006]
[1680662500936,3.364,1912.7,1912.5,0.006]
[1680662501460,3.364,1912.7,1912.1,0.1]
[1680662501461,3.364,1912.7,1912.4,0.006]
[1680662501860,9.132,1912.5,1912.4,0.006]
[1680662502174,8.864,1912.5,1912.1,0.1]
[1680662502379,0.23,1912.4,1912.1,0.1]
[1680662503251,0.23,1912.4,1910.5,0.0067166]
[1680662503252,8.632,1912.0,1910.5,0.0067166]
[1680662503436,8.632,1912.0,1909.5,1.62719249]
[1680662503437,3.134,1911.0,1909.5,0.52369]
[1680662503772,3.134,1911.0,1909.5,0.418952]
[1680662503773,3.134,1910.6,1909.5,0.418952]
[1680662503975,3.14,1910.6,1909.6,0.5]
[1680662504281,0.002,1910.8,1909.9,1.83254]
[1680662504465,0.002,1911.6,1910.0,0.52158824]
[1680662504777,0.30599055,1911.9,1910.9,1.83149]
[1680662504979,0.3,1911.9,1911.2,1.83124]
[1680662505279,0.3,1911.9,1911.5,0.418227]
[1680662505478,3.434,1911.9,1911.5,0.418227]
[1680662505983,3.134,1911.6,1911.5,0.418227]
[1680662507071,3.364,1911.6,1911.5,0.35981463]
[1680662507283,3.54709,1911.6,1911.5,0.00081463]
[1680662507465,8.54709,1911.6,1911.5,0.00081463]
[1680662507633,11.54909,1911.6,1911.5,0.00081463]
[1680662507839,0.18313,1911.2,1910.4,0.006]
[1680662508034,0.23,1911.1,1910.4,0.02758371]
[1680662508481,3.54713,1911.2,1910.4,0.02758371]
[1680662508648,3.364,1911.2,1910.4,0.02758371]
[1680662508849,3.134,1910.9,1910.4,0.02758371]
[1680662509262,3.134,1910.9,1910.4,0.02158371]
[1680662509932,0.002,1911.1,1910.4,0.28330371]
[1680662510136,0.23,1911.2,1910.4,0.28330371]
[1680662510772,0.23,1911.2,1910.4,0.02158371]
[1680662511175,3.364,1911.2,1910.4,0.02158371]
[1680662511477,3.54713,1911.2,1910.4,0.02158371]
[1680662511662,3.364,1911.2,1910.4,0.02158371]
[1680662511873,3.364,1911.2,1910.4,0.28330371]
[1680662512052,3.364,1911.2,1910.4,0.37398008]
[1680662512249,3.134,1911.1,1910.4,0.11226008]
[1680662512465,0.23,1911.0,1910.4,0.02158371]
[1680662512663,3.134,1910.9,1910.3,0.1]
[1680662512849,3.134,1910.7,1910.3,0.1]
[1680662513250,3.134,1910.5,1910.3,0.1]
[1680662513786,9.362,1910.4,1910.3,0.1]
[1680662513997,9.364,1910.4,1910.3,0.1]
[1680662514286,9.5472,1910.4,1909.3,0.004]
[1680662514484,8.632,1910.2,1909.3,0.062976]
[1680662514647,0.73,1910.1,1909.3,0.26186]
[1680662514849,11.26628255,1909.8,1909.2,0.1]
[1680662515051,0.23,1909.7,1909.2,0.1]
[1680662515247,2.63428255,1909.6,1909.2,0.36188]
[1680662515549,2.63428255,1909.6,1909.2,0.450447]
[1680662515550,3.134,1909.6,1909.2,0.450447]
[1680662515977,3.134,1909.6,1909.3,0.02159614]
[1680662516197,3.134,1909.6,1909.4,0.26186]
[1680662516554,3.134,1909.6,1909.3,0.28345614]
[1680662516886,0.002,1909.7,1909.4,0.26186]
[1680662517087,3.364,1910.1,1909.4,0.34257961]
[1680662517261,3.134,1909.6,1909.4,0.26186]
[1680662517668,0.002,1909.7,1909.4,0.26786]
[1680662517966,5.0,1910.6,1909.4,0.26786]
[1680662517967,0.002,1910.2,1909.7,2.2]
[1680662518152,9.0791,1910.8,1909.8,1.0054]
[1680662518153,5.5,1910.8,1909.8,1.0054]
[1680662518350,5.498,1910.6,1909.8,0.4818]
[1680662518554,3.134,1910.4,1909.8,0.4818]
[1680662518800,3.134,1910.3,1909.8,0.4878]
[1680662518966,5.76828255,1910.3,1909.8,0.006]
[1680662519299,3.136,1910.3,1909.8,0.26179]
[1680662519457,3.134,1910.3,1909.8,0.508569]
[1680662520291,3.134,1910.1,1909.7,2.206]
[1680662520477,3.134,1910.1,1909.7,2.46781]
[1680662520652,5.76828255,1910.1,1909.7,2.206]
[1680662520853,5.76828255,1910.1,1909.7,0.006]
[1680662520854,3.134,1909.9,1909.7,0.006]
[1680662521053,3.134,1909.9,1909.5,0.006]
[1680662521400,3.134,1909.9,1909.4,0.006]
[1680662521578,3.134,1909.9,1909.4,0.26186]
[1680662522156,2.86628255,1910.0,1909.7,2.2]
[1680662522157,0.002,1910.0,1909.7,2.2]
[1680662522383,3.134,1910.4,1909.8,0.2415905]
[1680662522565,0.008,1910.7,1909.8,0.0215905]
[1680662522566,3.134,1910.2,1909.8,0.0215905]
[1680662522893,3.134,1910.0,1909.7,0.006]
[1680662523053,0.002,1910.1,1909.7,2.2]
[1680662523253,5.76828255,1910.1,1909.7,2.42275928]
[1680662523452,5.77028255,1910.1,1909.7,2.69056928]
[1680662523905,3.134,1909.9,1909.7,0.006]
[1680662524195,5.76828255,1909.8,1909.5,0.26183]
[1680662524389,5.77028255,1909.8,1909.4,0.006]
[1680662524592,3.136,1909.8,1909.4,0.26785]
[1680662524769,3.134,1909.8,1909.4,0.26785]
[1680662525179,0.232,1910.0,1909.4,2.46785]
[1680662525391,0.232,1910.0,1909.6,0.26183]
[1680662525392,3.134,1909.9,1909.6,0.26183]
[1680662525899,2.86628255,1910.0,1909.6,0.26183]
[1680662526198,0.002,1910.2,1909.9,2.2]
[1680662526395,0.73259,1911.1,1910.0,0.22]
[1680662526396,2.63428255,1910.7,1910.0,0.22]
[1680662526596,2.81746255,1910.7,1909.9,2.46178]
[1680662526800,2.63428255,1910.7,1909.9,2.46178]
[1680662526981,2.81745255,1910.7,1909.9,2.46178]
[1680662527184,3.134,1910.6,1909.9,2.46178]
[1680662527422,3.134,1910.5,1909.9,3.20929934]
[1680662527715,3.134,1910.5,1910.1,0.26176]
[1680662528066,3.60982563,1910.5,1910.1,0.26176]
[1680662528675,3.60982563,1910.5,1910.1,0.28334711]
[1680662528861,3.60982563,1910.5,1910.1,0.80687711]
[1680662529067,3.60982563,1910.5,1910.1,1.58514645]
[1680662529398,3.60982563,1910.5,1910.2,0.15851465]
[1680662529804,0.002,1910.7,1910.2,0.15851465]
[1680662529977,3.134,1910.6,1910.2,0.15851465]
[1680662530518,3.134,1910.6,1910.1,1.06160645]
[1680662530805,3.134,1910.6,1910.1,0.28333711]
[1680662533173,3.134,1910.6,1910.3,2.137273]
[1680662533806,3.134,1910.6,1910.3,0.305123]
[1680662533963,3.134,1910.6,1910.3,0.299123]
[1680662534700,2.63628255,1910.7,1910.2,0.006]
[1680662534701,3.134,1910.4,1910.2,0.006]
[1680662534873,3.134,1910.4,1910.0,0.006]
[1680662534874,3.134,1910.3,1910.0,0.006]
[1680662535063,0.002,1910.4,1910.0,0.2266]
[1680662535269,3.134,1910.6,1909.9,2.46179]
[1680662535472,3.134,1910.6,1909.9,2.46779]
[1680662535680,3.134,1910.6,1910.1,2.2]
[1680662535883,3.1307116,1910.6,1910.1,2.46175]
[1680662536084,3.1307116,1910.6,1910.2,0.246175]
[1680662536926,3.3627116,1910.8,1910.2,0.246175]
[1680662537129,3.1307116,1910.6,1910.2,0.246175]
[1680662537326,3.1307116,1910.6,1910.2,0.252175]
[1680662537530,3.1307116,1910.6,1910.2,0.006]
[1680662537726,3.1307116,1910.6,1910.1,2.22758711]
[1680662537919,3.1307116,1910.6,1910.1,2.48934711]
[1680662538365,2.81946255,1910.7,1910.1,0.28933711]
[1680662538366,3.1307116,1910.4,1910.1,0.28933711]
[1680662538661,3.1307116,1910.4,1910.1,0.02158711]
[1680662538798,3.1307116,1910.4,1910.1,0.28934711]
[1680662539248,3.1307116,1910.4,1910.1,0.80687711]
[1680662539404,3.1307116,1910.4,1910.1,0.81287711]
[1680662539920,0.008,1910.5,1910.1,0.88560296]
[1680662540097,3.13656186,1910.6,1910.1,0.36207296]
[1680662540438,3.13656186,1910.6,1910.1,0.88560296]
[1680662540673,3.13656186,1910.6,1910.1,0.80431525]
[1680662540995,0.00256186,1910.6,1910.1,0.80431525]
[1680662541334,2.63684441,1910.6,1910.1,0.80431525]
[1680662541537,3.134,1910.5,1910.1,0.80431525]
[1680662541719,3.134,1910.5,1910.1,0.88474678]
[1680662542307,3.134,1910.5,1910.1,0.36121678]
[1680662542511,3.13656186,1910.6,1910.1,0.28078525]
[1680662542731,3.13656186,1910.6,1910.1,0.01902525]
[1680662542939,3.364,1910.5,1910.1,0.78529]
[1680662544417,3.364,1910.5,1910.1,0.26176]
[1680662545314,3.134,1910.3,1909.9,0.01915534]
[1680662545510,3.134,1910.3,1909.9,0.50366087]
[1680662546142,3.134,1910.3,1909.9,3.00452534]
[1680662547034,0.008,1910.4,1909.9,0.80452534]
[1680662547211,3.13656186,1910.6,1909.9,3.00452534]
[1680662547412,5.77684441,1910.6,1910.1,0.78526]
[1680662547623,5.77884441,1910.6,1910.1,0.78526]
[1680662549011,5.77884441,1910.6,1909.9,0.002]
[1680662549012,3.134,1910.4,1909.9,0.002]
[1680662549219,0.23,1910.3,1910.0,0.78532]
[1680662549431,0.23,1910.3,1910.0,0.26176]
[1680662549631,0.23,1910.3,1910.0,0.78532]
[1680662549843,0.008,1910.4,1910.0,1.083852]
[1680662550044,3.14256186,1910.6,1910.0,1.083852]
[1680662550231,0.23,1910.5,1910.0,0.26176]
[1680662550433,2.63428255,1910.4,1910.0,0.26176]
[1680662550620,3.364,1910.3,1910.0,0.78533]
[1680662550827,5.99828255,1910.3,1910.0,0.78533]
[1680662551127,6.00028255,1910.3,1910.0,0.78533]
[1680662551524,6.00028255,1910.3,1909.9,0.26178]
[1680662551714,6.00028255,1910.3,1909.9,0.78536]
[1680662552445,3.134,1910.1,1909.8,0.26179]
[1680662553869,3.134,1909.9,1909.7,0.002]
[1680662554068,5.76828255,1909.9,1909.7,0.26181]
[1680662554345,5.77028255,1909.9,1909.7,0.26181]
[1680662555631,5.77028255,1909.9,1909.7,0.78545]
[1680662555845,2.86428255,1909.8,1909.7,0.78545]
[1680662556049,5.99828255,1909.8,1909.5,0.26384]
[1680662556361,6.00628255,1909.8,1909.4,1.37075051]
[1680662556642,6.00628255,1909.8,1909.4,1.10890051]
[1680662556823,6.00628255,1909.8,1909.5,1.08974016]
[1680662557020,5.496,1909.5,1909.4,1.09644893]
[1680662557222,3.134,1909.3,1909.2,0.102]
[1680662557428,5.99828255,1909.3,1909.2,0.1]
[1680662557608,6.00028255,1909.3,1909.2,0.1]
[1680662558834,0.002,1909.3,1909.2,0.36188]
[1680662559037,3.134,1909.5,1909.2,1.98209893]
[1680662559207,0.006,1909.6,1909.2,1.98209893]
[1680662559533,0.006,1909.8,1909.3,1.09644893]
[1680662559709,2.63428255,1909.7,1909.3,1.35830893]
[1680662559914,2.63428255,1909.7,1909.3,0.26186]
[1680662560147,2.63428255,1909.7,1909.3,1.35831893]
[1680662560349,3.134,1909.6,1909.3,1.88206893]
[1680662560663,0.006,1909.6,1909.3,1.83206893]
[1680662560822,4.6708,1910.1,1909.4,1.06560928]
[1680662560823,0.006,1910.1,1909.4,1.06560928]
[1680662561156,2.63684441,1910.1,1909.6,0.26183]
[1680662561319,3.134,1910.0,1909.6,0.26183]
[1680662561519,3.14,1910.0,1909.6,0.78549]
[1680662561834,3.134,1909.8,1909.4,0.54287035]
[1680662562045,5.76828255,1909.8,1909.6,0.26182]
[1680662562246,5.77628255,1909.8,1909.6,0.78548]
[1680662562444,0.008,1909.8,1909.6,0.26182]
[1680662562646,3.134,1909.9,1909.6,0.26182]
[1680662562846,3.134,1909.9,1909.5,0.26183]
[1680662563047,0.19379186,1910.1,1909.5,0.26183]
[1680662563048,0.006,1910.0,1909.5,1.00159041]
[1680662563225,0.006,1910.3,1909.5,1.00159041]
[1680662563428,3.134,1910.2,1909.6,1.35599374]
[1680662563625,3.14,1910.2,1909.7,1.96826937]
[1680662564024,5.77428255,1910.2,1909.7,1.96826937]
[1680662564237,5.76828255,1910.1,1909.7,0.26181]
[1680662564441,5.77028255,1910.1,1909.7,0.26181]
[1680662564640,5.77028255,1910.1,1909.7,0.52364]
[1680662564842,0.008,1910.1,1909.7,3.18873374]
[1680662565153,3.14,1910.4,1909.8,3.87486711]
[1680662565354,3.14,1910.4,1909.9,1.83247]
[1680662566035,5.76828255,1910.4,1909.9,1.83247]
[1680662566242,5.77628255,1910.4,1909.9,1.83247]
[1680662566452,5.77628255,1910.4,1909.9,2.33636106]
[1680662567433,5.77628255,1910.4,1909.9,1.83247]
[1680662568349,3.134,1910.2,1909.9,1.83247]
[1680662568550,3.134,1910.2,1909.9,2.9266886]
[1680662568551,0.006,1910.2,1909.9,2.9266886]
[1680662568756,3.14,1910.4,1909.9,2.9266886]
[1680662568952,3.14,1910.4,1910.0,0.29266886]
[1680662569151,3.14,1910.4,1910.1,0.78528]
[1680662569346,0.006,1910.4,1910.1,0.78528]
[1680662569546,0.00256186,1910.5,1910.1,0.78528]
[1680662569745,0.1832,1910.4,1910.0,0.29266886]
[1680662569930,3.14256186,1910.5,1910.1,0.78528]
[1680662570343,5.77684441,1910.5,1910.0,0.52355]
[1680662570542,5.77884441,1910.5,1910.0,0.52355]
[1680662570766,0.23,1910.4,1910.0,0.78531]
[1680662571076,0.236,1910.4,1910.0,0.78531]
[1680662572147,0.236,1910.4,1909.9,1.0942186]
[1680662572459,0.236,1910.4,1909.9,1.3560086]
[1680662572460,3.37,1910.4,1909.9,1.3560086]
[1680662572773,3.14,1910.4,1909.9,1.8795886]
[1680662573457,0.006,1910.4,1909.9,1.8795886]
[1680662573654,0.006,1910.6,1910.0,1.28217746]
[1680662573862,0.006,1910.6,1910.1,1.8323]
[1680662574485,0.006,1910.6,1910.1,2.9265186]
[1680662574791,0.006,1910.6,1910.1,2.27954712]
[1680662576481,0.006,1910.6,1910.1,3.37376572]
[1680662577368,0.006,1910.6,1910.1,2.27954712]
[1680662577694,0.006,1910.6,1910.1,3.37376572]
[1680662578591,3.134,1910.5,1910.1,2.27954712]
[1680662578790,3.14,1910.5,1910.1,1.8323]
[1680662579194,3.14,1910.5,1910.1,5.5441786]
[1680662579353,0.006,1910.5,1910.2,1.0942186]
[1680662579553,0.006,1910.6,1910.3,1.94157186]
[1680662580463,3.14,1910.6,1910.3,0.10942186]
[1680662580653,3.32319,1910.6,1910.3,0.10942186]
[1680662580859,3.14,1910.6,1910.1,1.11337193]
[1680662581070,3.134,1910.6,1910.2,0.26175]
[1680662581269,3.14,1910.6,1910.2,0.26175]
[1680662581589,3.14,1910.6,1910.2,0.78525]
[1680662581755,3.14,1910.6,1910.2,0.97511219]
[1680662582503,0.006,1910.6,1910.3,0.01915132]
[1680662582707,0.236,1910.7,1910.4,0.26172]
[1680662582870,5.76828255,1910.6,1910.3,0.26173]
[1680662583196,3.134,1910.4,1910.3,0.7852]
[1680662583495,3.13144914,1910.4,1910.3,0.7852]
[1680662584191,0.002,1910.5,1910.3,0.7852]
[1680662584392,0.23256186,1910.7,1910.3,0.7852]
[1680662584555,3.134,1910.6,1910.3,0.7852]
[1680662584955,3.0963842,1910.6,1910.3,0.7852]
[1680662585188,2.86884441,1910.7,1910.3,0.7852]
[1680662585400,2.86684441,1910.7,1910.3,0.7852]
[1680662585892,2.86428255,1910.7,1910.3,0.7852]
[1680662586094,2.86428255,1910.7,1910.3,0.968416]
[1680662586286,2.86428255,1910.7,1910.3,0.98756732]
[1680662586896,8.13228255,1910.6,1910.3,0.28088132]
[1680662587108,8.13228255,1910.4,1910.1,0.006]
[1680662587319,8.13228255,1910.4,1909.8,0.002]
[1680662587320,11.26628255,1910.2,1909.8,0.002]
[1680662587478,5.498,1910.0,1909.6,0.006]
[1680662587678,8.36228255,1909.9,1909.6,0.26783]
[1680662587873,9.46128255,1909.9,1909.6,0.006]
[1680662588070,9.46384441,1909.9,1909.5,1.1002186]
[1680662588492,5.498,1909.7,1909.3,1.1022186]
[1680662588696,5.5,1909.7,1909.4,0.26186]
[1680662589020,5.5,1909.7,1909.3,1.0942186]
[1680662589021,0.23,1909.6,1909.3,1.3560786]
[1680662589464,0.23,1909.6,1909.3,1.3620786]
[1680662589919,5.76828255,1909.4,1909.1,0.002]
[1680662590203,5.76828255,1909.4,1909.0,1.10022148]
[1680662590204,2.86428255,1909.3,1909.0,1.10022148]
[1680662590535,1.093,1909.6,1909.2,4.82828255]
[1680662590536,0.004,1909.6,1909.2,4.82828255]
[1680662590668,4.6523,1910.6,1909.6,4.45097]
[1680662590868,0.004,1910.4,1909.6,4.45097]
[1680662591179,1.099,1910.5,1909.6,4.45097]
[1680662591392,5.50056186,1910.4,1909.7,0.445097]
[1680662591705,1.097,1910.3,1909.9,0.78537]
[1680662591882,6.584,1910.0,1909.7,0.26181]
[1680662592094,1.09956186,1909.9,1909.7,0.26181]
[1680662592402,0.23,1909.8,1909.7,0.26181]
[1680662593087,2.86428255,1909.8,1909.7,0.26182]
[1680662593293,2.86428255,1909.8,1909.6,0.78547]
[1680662594005,0.01056186,1909.9,1909.6,3.482357]
[1680662594006,0.008,1909.9,1909.6,3.482357]
[1680662594215,0.006,1910.1,1909.6,0.864017]
[1680662594385,2.63428255,1910.0,1909.6,0.78547]
[1680662594702,8.13228255,1910.0,1909.6,0.26182]
[1680662594906,8.14028255,1910.0,1909.6,0.26183]
[1680662595207,8.14284441,1910.0,1909.6,0.26183]
[1680662595506,8.14284441,1910.0,1909.6,0.78549]
[1680662595507,0.23,1909.9,1909.6,0.78549]
[1680662595804,2.63428255,1909.8,1909.6,0.78549]
[1680662597307,0.01056186,1910.0,1909.6,0.78549]
[1680662597620,2.63428255,1909.7,1909.4,0.26185]
[1680662597822,2.202,1909.8,1909.4,0.78557]
[1680662597976,0.008,1909.9,1909.4,0.26185]
[1680662598175,8.68924,1910.1,1909.4,0.26185]
[1680662598530,2.82008441,1910.0,1909.2,2.14162702]
[1680662598673,2.82608441,1910.0,1909.3,0.26186]
[1680662598870,8.69057441,1910.0,1909.3,0.26186]
[1680662599174,8.69257441,1910.0,1909.2,2.23090741]
[1680662599790,0.23,1909.9,1909.2,2.23090741]
[1680662599990,2.63428255,1909.8,1909.2,2.23090741]
[1680662600195,2.63684441,1909.8,1909.2,2.23090741]
[1680662600512,5.498,1909.7,1909.1,1.63167685]
[1680662600752,5.498,1909.7,1909.0,0.006]
[1680662600753,2.176,1909.4,1909.0,0.006]
[1680662601020,0.006,1909.5,1909.0,0.78574]
[1680662601185,0.006,1910.1,1909.3,4.391]
[1680662601388,2.187,1910.4,1909.7,0.78546]
[1680662601617,2.187,1910.4,1909.8,0.09770234]
[1680662601820,0.006,1910.4,1909.8,0.88310234]
[1680662602711,2.63428255,1910.3,1909.8,0.88310234]